bitfinex-derivatives/quotes_SOLF0:USTF0_20260105
["timestamp","ask_amount","ask_price","bid_price","bid_amount"]
[1767574476532,87.44446206,135.44,135.33,103.4951]
[1767574477141,87.44446206,135.44,135.31,103.5093]
[1767574477142,0.32446206,135.43,135.31,103.5093]
[1767574477341,0.32446206,135.43,135.3,87.22]
[1767574477640,190.5381,135.44,135.33,6.6531]
[1767574477641,6.97376206,135.42,135.33,6.6531]
[1767574478042,0.32446206,135.41,135.3,190.7368]
[1767574478734,0.32446206,135.4,135.3,87.22]
[1767574478932,87.12,135.39,135.27,103.5412]
[1767574479235,0.32446206,135.37,135.29,6.6551]
[1767574479433,0.32446206,135.37,135.26,103.547]
[1767574480035,0.32446206,135.37,135.25,87.24]
[1767574480036,6.97606206,135.37,135.28,6.6556]
[1767574481141,0.32446206,135.37,135.29,6.655]
[1767574482943,0.32446206,135.37,135.27,6.6561]
[1767574483538,0.32446206,135.35,135.25,6.6572]
[1767574483852,0.32446206,135.35,135.24,103.5623]
[1767574484553,87.16,135.37,135.26,103.5479]
[1767574484854,87.48446206,135.37,135.26,103.5479]
[1767574485450,6.6519,135.36,135.26,6.6568]
[1767574485651,6.97636206,135.36,135.26,6.6568]
[1767574486749,6.97636206,135.36,135.27,103.5403]
[1767574486750,0.32446206,135.36,135.27,103.5403]
[1767574487346,0.32446206,135.4,135.27,103.5403]
[1767574487547,87.16,135.39,135.3,6.6546]
[1767574488154,87.48446206,135.39,135.3,6.6546]
[1767574489353,87.18,135.41,135.31,103.5121]
[1767574489654,87.18,135.41,135.3,103.5165]
[1767574490451,6.97366206,135.42,135.31,103.5125]
[1767574490649,94.15366206,135.42,135.31,103.5125]
[1767574491250,0.32446206,135.41,135.33,6.6531]
[1767574491754,0.32446206,135.41,135.31,103.5125]
[1767574491958,0.32446206,135.44,135.34,103.4893]
[1767574492152,87.50446206,135.44,135.34,103.4893]
[1767574492754,0.32446206,135.44,135.37,6.6511]
[1767574493051,0.32446206,135.44,135.35,103.4803]
[1767574493052,87.18,135.46,135.36,103.4738]
[1767574493454,87.50446206,135.46,135.36,103.4738]
[1767574493648,0.32446206,135.45,135.36,6.6517]
[1767574493860,0.32446206,135.45,135.35,103.4814]
[1767574494247,0.32446206,135.45,135.38,6.6507]
[1767574494448,94.15126206,135.47,135.38,6.6507]
[1767574495755,87.50446206,135.47,135.39,6.6502]
[1767574496955,87.50446206,135.47,135.4,6.6495]
[1767574497157,87.18,135.47,135.39,103.4496]
[1767574498057,87.50446206,135.47,135.37,190.7462]
[1767574498758,87.18,135.47,135.39,103.4495]
[1767574499566,0.32446206,135.5,135.42,6.6486]
[1767574500265,0.32446206,135.5,135.4,6.6497]
[1767574500656,0.33887425,135.47,135.37,87.28]
[1767574501164,0.33887425,135.45,135.34,87.26]
[1767574501354,6.6483,135.44,135.34,93.9126]
[1767574501661,6.98717425,135.44,135.34,93.9126]
[1767574501865,0.33887425,135.44,135.34,87.26]
[1767574502267,0.33887425,135.44,135.35,103.481]
[1767574502866,0.33887425,135.44,135.34,87.26]
[1767574503061,0.33887425,135.47,135.36,103.4718]
[1767574504368,0.33887425,135.47,135.37,103.4654]
[1767574505364,0.33887425,135.5,135.4,103.4426]
[1767574506266,0.33887425,135.5,135.38,190.719]
[1767574506580,0.33887425,135.5,135.38,87.26]
[1767574507672,6.98467425,135.49,135.4,6.6496]
[1767574508870,0.33887425,135.48,135.4,6.6496]
[1767574510570,6.6467,135.47,135.38,87.26]
[1767574510770,0.33887425,135.46,135.34,103.4855]
[1767574511171,0.33887425,135.44,135.33,87.26]
[1767574511668,0.33887425,135.44,135.33,190.7545]
[1767574512577,6.98707425,135.44,135.35,6.6522]
[1767574513066,0.33887425,135.43,135.35,6.6522]
[1767574513266,0.33887425,135.43,135.33,190.7545]
[1767574513267,0.33887425,135.39,135.3,103.5196]
[1767574513477,0.33887425,135.42,135.31,103.5124]
[1767574513681,87.14,135.41,135.31,103.5124]
[1767574514670,87.14,135.41,135.33,6.6532]
[1767574515070,0.33887425,135.4,135.29,103.5251]
[1767574515270,0.33887425,135.39,135.27,103.5393]
[1767574516175,0.33887425,135.39,135.3,6.6546]
[1767574516368,0.33887425,135.39,135.27,103.5393]
[1767574516583,0.33887425,135.39,135.25,103.5544]
[1767574516777,0.33887425,135.36,135.28,6.6555]
[1767574517781,0.33887425,135.36,135.26,6.6568]
[1767574518077,0.33887425,135.36,135.25,103.5544]
[1767574518480,0.33887425,135.36,135.27,6.6559]
[1767574518681,87.16,135.38,135.28,103.5326]
[1767574518880,87.49887425,135.38,135.28,103.5326]
[1767574519574,87.49887425,135.38,135.3,6.6546]
[1767574519882,87.16,135.37,135.3,6.6546]
[1767574520378,87.16,135.37,135.31,6.6541]
[1767574520578,0.33887425,135.41,135.3,103.5173]
[1767574520883,87.49887425,135.4,135.31,103.5126]
[1767574521081,0.33887425,135.4,135.31,103.5126]
[1767574521271,87.18,135.39,135.31,103.5126]
[1767574521671,87.18,135.39,135.32,6.6536]
[1767574522082,87.51887425,135.39,135.32,6.6536]
[1767574523584,0.33887425,135.39,135.33,6.6531]
[1767574523882,6.6491,135.42,135.33,6.6531]
[1767574523883,0.33887425,135.42,135.33,103.495]
[1767574525079,0.33887425,135.45,135.35,103.481]
[1767574525285,87.51887425,135.45,135.35,103.481]
[1767574525784,0.33887425,135.44,135.34,103.4857]
[1767574527687,87.51887425,135.44,135.32,190.7827]
[1767574527876,0.33887425,135.43,135.32,190.7827]
[1767574528187,0.33887425,135.43,135.35,6.6522]
[1767574529188,10.69620519,135.46,135.35,103.4815]
[1767574529387,87.18,135.43,135.35,103.4815]
[1767574530485,87.18,135.45,135.38,6.6507]
[1767574530891,0.33887425,135.46,135.38,6.6507]
[1767574531095,87.18,135.45,135.38,6.6507]
[1767574531395,87.18,135.45,135.39,6.6503]
[1767574535899,87.4944118,135.45,135.37,6.6512]
[1767574536395,87.4944118,135.45,135.35,103.4815]
[1767574537701,87.4944118,135.45,135.38,6.6507]
[1767574538300,0.3144118,135.43,135.36,6.6515]
[1767574538496,0.3144118,135.43,135.32,190.7827]
[1767574539290,6.9630118,135.43,135.35,6.6522]
[1767574541603,0.3144118,135.42,135.35,6.6522]
[1767574543205,0.3144118,135.41,135.33,6.653]
[1767574543400,0.3144118,135.41,135.3,103.5167]
[1767574543708,0.3144118,135.4,135.31,103.5123]
[1767574543897,87.16,135.39,135.31,103.5123]
[1767574544407,87.16,135.39,135.34,6.6528]
[1767574544709,87.4744118,135.39,135.31,103.5123]
[1767574545006,87.4744118,135.39,135.3,103.5167]
[1767574545507,87.4744118,135.39,135.29,103.5208]
[1767574545901,87.4744118,135.39,135.32,6.6537]
[1767574547105,0.3144118,135.42,135.3,103.5201]
[1767574547311,87.4744118,135.42,135.34,6.6527]
[1767574547702,87.4744118,135.42,135.32,103.5019]
[1767574547900,0.3144118,135.42,135.35,6.6523]
[1767574548103,87.4744118,135.42,135.35,6.6523]
[1767574548295,87.4744118,135.42,135.33,103.4938]
[1767574548916,0.3144118,135.45,135.35,103.4777]
[1767574549111,87.4944118,135.45,135.35,103.4777]
[1767574550406,87.4944118,135.45,135.38,6.6507]
[1767574550993,0.3144118,135.44,135.36,6.6517]
[1767574551406,0.3144118,135.44,135.34,103.4871]
[1767574551705,0.3144118,135.44,135.35,103.4792]
[1767574552007,0.3144118,135.44,135.36,103.4744]
[1767574552209,87.16,135.46,135.36,103.4744]
[1767574552407,87.4744118,135.46,135.39,6.6503]
[1767574553103,0.3144118,135.49,135.4,6.6498]
[1767574553303,87.16,135.48,135.38,103.4561]
[1767574553511,87.4744118,135.48,135.38,103.4561]
[1767574554815,87.4744118,135.48,135.41,6.6493]
[1767574555607,107.06593094,135.52,135.42,6.6488]
[1767574555608,6.9593118,135.51,135.42,6.6488]
[1767574555805,0.3144118,135.49,135.42,6.6488]
[1767574557214,0.3144118,135.49,135.4,6.6496]
[1767574557605,0.3144118,135.49,135.4,103.4435]
[1767574557912,0.3144118,135.49,135.42,6.6487]
[1767574558910,87.4744118,135.49,135.43,6.6483]
[1767574560112,0.3144118,135.52,135.42,103.425]
[1767574560309,0.33821014,135.5,135.41,103.4326]
[1767574561610,0.33821014,135.5,135.43,6.6482]
[1767574561818,87.14,135.51,135.42,103.4267]
[1767574562317,87.47821014,135.51,135.41,103.4326]
[1767574562620,0.33821014,135.5,135.4,190.7035]
[1767574563419,0.33821014,135.5,135.42,6.6488]
[1767574564122,87.47821014,135.5,135.43,6.6483]
[1767574564416,0.33821014,135.5,135.42,103.4264]
[1767574564618,87.14,135.51,135.45,6.6473]
[1767574565516,87.14,135.51,135.46,6.6468]
[1767574565810,0.33821014,135.53,135.46,6.6468]
[1767574566012,0.33821014,135.53,135.48,6.6458]
[1767574566209,87.47821014,135.55,135.48,6.6458]
[1767574566612,87.47821014,135.55,135.47,103.3896]
[1767574567214,0.33821014,135.59,135.51,6.6444]
[1767574567613,0.33821014,135.59,135.5,103.3649]
[1767574567812,0.33821014,135.59,135.53,6.6433]
[1767574568134,87.14,135.61,135.52,103.3512]
[1767574568308,87.47821014,135.61,135.51,103.3564]
[1767574569023,87.47821014,135.61,135.53,6.6433]
[1767574569323,0.33821014,135.6,135.49,103.3721]
[1767574569710,0.33821014,135.6,135.52,6.6437]
[1767574570418,87.45821014,135.6,135.52,6.6437]
[1767574570616,0.33821014,135.59,135.5,6.645]
[1767574571012,0.33821014,135.59,135.49,103.3721]
[1767574572719,0.33821014,135.59,135.51,6.6443]
[1767574573122,0.33821014,135.59,135.5,103.3673]
[1767574573123,87.43821014,135.59,135.5,103.3673]
[1767574573423,87.43821014,135.59,135.52,6.6439]
[1767574577524,0.33821014,135.58,135.52,6.6439]
[1767574580826,2.69138211,135.64,135.54,103.3369]
[1767574581128,0.33821014,135.64,135.54,103.3369]
[1767574581424,0.33821014,135.64,135.57,6.6414]
[1767574582425,0.33821014,135.64,135.55,6.6423]
[1767574582926,0.33821014,135.62,135.53,93.8433]
[1767574583417,6.6399,135.61,135.51,6.6442]
[1767574583619,87.41821014,135.6,135.49,103.372]
[1767574583815,0.33821014,135.59,135.49,103.372]
[1767574584623,0.33821014,135.59,135.52,6.6439]
[1767574585419,0.33821014,135.59,135.5,6.6447]
[1767574585624,0.33821014,135.56,135.44,103.4108]
[1767574585826,0.33821014,135.54,135.44,103.4108]
[1767574586028,0.33821014,135.54,135.48,6.6458]
[1767574586029,87.41821014,135.54,135.48,6.6458]
[1767574586222,87.41821014,135.54,135.44,103.4108]
[1767574586426,0.33821014,135.53,135.43,103.4176]
[1767574586627,0.33821014,135.53,135.46,6.6466]
[1767574587926,0.33821014,135.53,135.44,6.6477]
[1767574588122,87.08,135.54,135.44,103.4119]
[1767574588728,87.41821014,135.54,135.44,103.4119]
[1767574589530,87.41821014,135.54,135.46,6.6467]
[1767574590228,87.41821014,135.54,135.47,6.6462]
[1767574590933,87.08,135.54,135.48,6.6458]
[1767574591122,0.34008851,135.57,135.48,6.6458]
[1767574591723,0.34008851,135.57,135.46,103.3944]
[1767574591926,87.42008851,135.6,135.49,103.3744]
[1767574592227,87.42008851,135.6,135.5,103.3661]
[1767574592434,87.42008851,135.6,135.53,6.6434]
[1767574594933,87.42008851,135.6,135.5,103.3661]
[1767574594934,87.42008851,135.6,135.51,6.6442]
[1767574595134,0.34008851,135.59,135.51,6.6442]
[1767574595737,0.34008851,135.59,135.52,6.6439]
[1767574596432,87.08,135.6,135.53,6.6434]
[1767574596831,87.40349345,135.6,135.53,6.6434]
[1767574599340,87.40349345,135.6,135.54,6.6429]
[1767574599940,87.08,135.6,135.55,6.6424]
[1767574600140,0.32349345,135.62,135.55,6.6424]
[1767574600850,0.32349345,135.62,135.56,6.6419]
[1767574601343,87.08,135.63,135.56,103.3216]
[1767574601545,0.32349345,135.65,135.53,103.3395]
[1767574601843,0.32349345,135.65,135.54,103.3367]
[1767574602538,0.32349345,135.63,135.53,190.5195]
[1767574603041,0.32349345,135.62,135.54,6.6428]
[1767574606848,0.32349345,135.61,135.54,6.6428]
[1767574607643,0.32349345,135.6,135.52,6.6439]
[1767574608347,0.32349345,135.59,135.52,6.6439]
[1767574609048,0.32349345,135.59,135.5,87.18]
[1767574609049,87.06,135.61,135.53,6.6434]
[1767574609238,87.38349345,135.61,135.53,6.6434]
[1767574609446,0.32349345,135.6,135.53,6.6434]
[1767574612746,0.32349345,135.6,135.54,6.6429]
[1767574613649,0.32349345,135.63,135.55,6.6424]
[1767574613953,0.32349345,135.63,135.51,103.3562]
[1767574613954,87.38349345,135.65,135.54,103.3366]
[1767574614163,94.02129345,135.65,135.55,103.328]
[1767574614854,87.38349345,135.65,135.58,6.641]
[1767574615952,0.32349345,135.64,135.54,103.3366]
[1767574617052,0.32349345,135.64,135.58,6.641]
[1767574617853,87.06,135.65,135.59,6.6405]
[1767574618645,0.32349345,135.66,135.58,103.3053]
[1767574619051,0.32349345,135.66,135.57,103.312]
[1767574619453,0.32349345,135.66,135.55,190.4892]
[1767574620054,87.06,135.67,135.53,112.13952029]
[1767574620055,0.32349345,135.64,135.53,103.3419]
[1767574620953,0.32349345,135.64,135.56,6.6416]
[1767574621357,0.32360563,135.6,135.54,6.6428]
[1767574622953,0.32360563,135.6,135.52,6.6437]
[1767574623154,0.32360563,135.6,135.5,355.19703953]
[1767574623348,0.32360563,135.6,135.51,103.3597]
[1767574624649,0.32360563,135.6,135.53,6.6434]
[1767574624961,87.04,135.61,135.52,103.3495]
[1767574625161,0.32360563,135.63,135.54,103.3366]
[1767574625363,93.6978,135.65,135.54,103.3366]
[1767574625560,94.02140563,135.65,135.54,103.3366]
[1767574626062,87.38360563,135.65,135.55,103.3293]
[1767574626263,0.32360563,135.65,135.56,103.317]
[1767574627159,0.32360563,135.68,135.59,103.2988]
[1767574627351,0.32360563,135.68,135.57,87.16]
[1767574627957,0.32360563,135.67,135.57,103.3107]
[1767574628169,0.32360563,135.67,135.58,103.305]
[1767574628660,0.32360563,135.67,135.59,6.6402]
[1767574629856,0.32360563,135.7,135.59,103.2981]
[1767574630056,93.99900563,135.7,135.59,103.2981]
[1767574630258,93.99900563,135.7,135.59,190.4581]
[1767574631255,0.32360563,135.68,135.59,87.16]
[1767574631757,0.32360563,135.68,135.59,190.4561]
[1767574632155,0.32360563,135.68,135.59,87.16]
[1767574632359,0.32360563,135.68,135.57,87.14]
[1767574633563,6.96050563,135.67,135.59,6.6402]
[1767574633862,0.32360563,135.67,135.59,6.6402]
[1767574634564,0.32360563,135.67,135.57,93.7812]
[1767574634962,0.32360563,135.66,135.57,87.14]
[1767574635164,0.32360563,135.66,135.58,6.6409]
[1767574636856,0.32360563,135.66,135.58,103.3039]
[1767574637057,87.04,135.67,135.58,103.3039]
[1767574637258,0.32360563,135.66,135.57,190.4512]
[1767574637952,0.32360563,135.63,135.51,112.15342029]
[1767574638156,0.32360563,135.63,135.5,347.77005982]
[1767574638364,6.96340563,135.61,135.52,6.6439]
[1767574638563,94.00340563,135.61,135.52,6.6439]
[1767574639359,94.00340563,135.61,135.53,6.6434]
[1767574639657,3.69761233,135.63,135.5,442.33633953]
[1767574639658,6.639,135.63,135.52,103.3513]
[1767574639862,94.00260563,135.63,135.52,103.3513]
[1767574640365,94.00260563,135.63,135.55,6.6424]
[1767574640560,87.36360563,135.63,135.55,6.6424]
[1767574640858,0.32360563,135.62,135.55,6.6424]
[1767574641259,87.04,135.63,135.56,6.6419]
[1767574641560,87.04,135.63,135.54,103.3341]
[1767574641863,87.04,135.63,135.54,190.4741]
[1767574642766,87.04,135.63,135.57,6.6414]
[1767574645469,87.04,135.63,135.58,6.641]
[1767574645963,0.32360563,135.65,135.59,6.6403]
[1767574647062,0.32360563,135.65,135.57,6.6413]
[1767574647270,0.32360563,135.65,135.56,103.3145]
[1767574648064,87.36360563,135.67,135.57,103.3111]
[1767574648263,0.32360563,135.7,135.59,103.2988]
[1767574648470,0.32360563,135.73,135.65,6.6375]
[1767574649571,0.32360563,135.72,135.63,6.6384]
[1767574650168,0.32360563,135.71,135.63,6.6384]
[1767574650565,0.32360563,135.71,135.64,6.6378]
[1767574651271,0.32360563,135.71,135.62,6.6388]
[1767574651570,0.32360563,135.71,135.61,103.2831]
[1767574652669,0.32360563,135.71,135.6,103.2912]
[1767574652874,4.02121796,135.71,135.58,103.3052]
[1767574653062,0.33666921,135.7,135.58,103.3052]
[1767574653265,0.33666921,135.68,135.58,103.3052]
[1767574654475,0.33666921,135.68,135.61,6.6394]
[1767574656372,0.33666921,135.68,135.59,103.2954]
[1767574656576,0.33666921,135.68,135.62,6.6389]
[1767574656869,0.33666921,135.68,135.58,103.3052]
[1767574657379,0.33666921,135.68,135.57,190.4502]
[1767574657677,0.33666921,135.68,135.58,103.303]
[1767574658175,0.33666921,135.68,135.57,190.4502]
[1767574658875,0.33666921,135.68,135.6,6.6399]
[1767574659071,0.33666921,135.68,135.58,103.303]
[1767574659276,0.33666921,135.68,135.57,190.4502]
[1767574659277,6.6354,135.7,135.6,103.2904]
[1767574659478,6.97227213,135.7,135.62,6.6389]
[1767574659677,0.33687213,135.69,135.62,6.6389]
[1767574662682,87.02,135.71,135.59,103.2947]
[1767574662683,87.02,135.71,135.61,103.2795]
[1767574663476,0.33687213,135.72,135.63,103.2655]
[1767574664682,0.33687213,135.72,135.66,6.637]
[1767574665279,6.96887213,135.77,135.67,87.12]
[1767574665483,0.33687213,135.77,135.68,87.12]
[1767574666483,0.33687213,135.77,135.67,103.2343]
[1767574666687,0.33687213,135.77,135.68,87.12]
[1767574667585,0.33687213,135.77,135.69,6.6355]
[1767574668090,87.35687213,135.8,135.69,103.2204]
[1767574668282,87.35687213,135.8,135.7,103.2123]
[1767574669085,0.33687213,135.79,135.7,103.2123]
[1767574669284,0.33687213,135.79,135.68,190.3468]
[1767574669482,0.33687213,135.79,135.69,87.1]
[1767574669878,0.33687213,135.79,135.71,6.6346]
[1767574670279,0.33687213,135.79,135.68,103.2268]
[1767574670480,1.50194175,135.77,135.69,87.1]
[1767574671277,1.50194175,135.77,135.7,6.635]
[1767574672889,1.50194175,135.77,135.69,87.1]
[1767574672890,0.33687213,135.79,135.69,87.1]
[1767574673096,88.85881388,135.8,135.71,6.6345]
[1767574674403,87.02,135.8,135.71,103.2068]
[1767574674704,88.52194175,135.8,135.71,1.50194175]
[1767574674902,88.52194175,135.8,135.73,6.6335]
[1767574675700,3.74855258,135.81,135.73,6.6335]
[1767574676209,3.74855258,135.81,135.73,103.1909]
[1767574676506,3.74855258,135.81,135.73,104.69284175]
[1767574676806,3.74855258,135.81,135.75,6.6324]
[1767574677211,5.258e-05,135.81,135.74,104.68514175]
[1767574677411,5.258e-05,135.81,135.75,103.1741]
[1767574677607,5.258e-05,135.81,135.74,1.50194175]
[1767574678106,5.258e-05,135.81,135.74,87.08]
[1767574679107,5.258e-05,135.81,135.73,6.6335]
[1767574679311,0.33692471,135.81,135.73,93.6935]
[1767574679602,0.33692471,135.81,135.71,103.2047]
[1767574679809,0.33692471,135.81,135.71,6.6345]
[1767574680009,0.33687213,135.8,135.71,6.6345]
[1767574681607,0.33113537,135.79,135.69,6.6355]
[1767574681907,0.33113537,135.78,135.69,6.6355]
[1767574682610,0.33113537,135.78,135.7,6.635]
[1767574683406,0.33113537,135.78,135.68,6.6359]
[1767574683709,0.33113537,135.78,135.67,190.2934]
[1767574683902,0.33113537,135.78,135.69,103.2224]
[1767574684100,5.258e-05,135.81,135.7,103.2135]
[1767574684311,5.258e-05,135.81,135.71,103.2073]
[1767574684813,5.258e-05,135.81,135.75,103.1765]
[1767574685702,5.258e-05,135.81,135.77,6.6316]
[1767574685901,5.258e-05,135.81,135.76,103.1668]
[1767574686107,5.258e-05,135.81,135.78,6.631]
[1767574687310,5.258e-05,135.81,135.79,6.6306]
[1767574689102,5.258e-05,135.81,135.76,190.2268]
[1767574689608,5.258e-05,135.81,135.76,103.1668]
[1767574690005,5.258e-05,135.81,135.78,6.631]
[1767574690216,5.258e-05,135.81,135.76,87.04]
[1767574690413,5.258e-05,135.81,135.74,103.1839]
[1767574690621,5.258e-05,135.81,135.76,6.6321]
[1767574691119,5.258e-05,135.81,135.76,103.1665]
[1767574691319,5.258e-05,135.81,135.78,6.6311]
[1767574693808,5.258e-05,135.81,135.79,6.6306]
[1767574694817,5.258e-05,135.81,135.76,103.1665]
[1767574696125,5.258e-05,135.81,135.78,6.6311]
[1767574696620,5.258e-05,135.81,135.75,103.1763]
[1767574696812,0.33113537,135.85,135.77,1.47994742]
[1767574697217,0.33113537,135.85,135.77,8.11154742]
[1767574697420,0.33113537,135.85,135.77,1.47994742]
[1767574698317,0.33113537,135.88,135.79,6.6306]
[1767574699525,3.68496345,135.86,135.8,1.47994742]
[1767574699732,0.33113537,135.85,135.74,103.1843]
[1767574700633,2.6761776,135.85,135.74,103.1843]
[1767574700929,0.33113537,135.84,135.74,103.1843]
[1767574701628,0.33113537,135.84,135.75,8.11264742]
[1767574702429,0.33113537,135.82,135.75,1.47994742]
[1767574704530,0.33113537,135.8,135.75,1.47994742]
[1767574705631,6.96163537,135.8,135.72,6.6341]
[1767574705826,0.33113537,135.79,135.72,8.11404742]
[1767574707541,0.33113537,135.79,135.72,1.47994742]
[1767574707542,0.33113537,135.78,135.72,1.47994742]
[1767574708243,6.96263537,135.78,135.72,1.47994742]
[1767574710139,6.96323537,135.77,135.67,6.6364]
[1767574710346,0.33113537,135.77,135.68,6.636]
[1767574711142,0.31942086,135.76,135.65,103.2499]
[1767574712242,0.31942086,135.76,135.67,6.6364]
[1767574712740,6.95182086,135.76,135.67,6.6364]
[1767574712937,0.31942086,135.75,135.64,2.34504223]
[1767574713145,0.31942086,135.75,135.64,105.60214223]
[1767574714446,0.31942086,135.75,135.67,6.6365]
[1767574716153,0.31942086,135.75,135.64,105.60214223]
[1767574716154,6.95232086,135.75,135.64,105.60214223]
[1767574717451,6.95232086,135.75,135.65,87.06]
[1767574717751,6.95232086,135.75,135.66,6.637]
[1767574719941,6.6334,135.74,135.66,6.637]
[1767574720142,6.95785988,135.74,135.66,6.637]
[1767574720347,6.95785988,135.74,135.62,87.06]
[1767574720348,0.32445988,135.73,135.62,87.06]
[1767574721655,6.95875988,135.72,135.63,6.6385]
[1767574722847,2.34504223,135.74,135.62,87.06]
[1767574722848,6.95945988,135.71,135.62,87.06]
[1767574724051,0.32445988,135.7,135.62,87.06]
[1767574724564,0.32445988,135.7,135.63,6.6385]
[1767574725257,6.95885988,135.72,135.63,6.6385]
[1767574725760,6.95885988,135.72,135.64,6.638]
[1767574726363,6.6336,135.74,135.64,6.638]
[1767574726661,0.32445988,135.73,135.64,6.638]
[1767574727663,6.95835988,135.73,135.64,6.638]
[1767574727849,0.32445988,135.76,135.63,105.60744223]
[1767574728055,0.32445988,135.76,135.64,103.2607]
[1767574728251,0.32445988,135.76,135.65,105.59324223]
[1767574728968,0.32445988,135.76,135.68,6.636]
[1767574732358,93.5721,135.77,135.68,6.636]
[1767574732555,86.94,135.77,135.69,6.6356]
[1767574733869,0.32445988,135.82,135.72,6.6341]
[1767574735069,0.32445988,135.8,135.7,6.6349]
[1767574735968,0.32445988,135.8,135.71,6.6344]
[1767574736173,0.32445988,135.82,135.7,103.2149]
[1767574737572,0.32445988,135.82,135.73,6.6336]
[1767574738973,0.32445988,135.81,135.71,6.6344]
[1767574740976,0.33425069,135.82,135.71,2.34504223]
[1767574741170,0.33425069,135.81,135.69,2.34504223]
[1767574741373,0.33425069,135.81,135.67,192.64024223]
[1767574741564,0.33425069,135.79,135.67,2.34504223]
[1767574741764,0.33425069,135.77,135.66,2.34504223]
[1767574742775,0.33425069,135.77,135.67,6.6366]
[1767574744279,6.96635069,135.77,135.67,6.6366]
[1767574744476,0.33425069,135.76,135.67,6.6366]
[1767574745981,0.33425069,135.76,135.68,6.6361]
[1767574746578,93.5921,135.77,135.68,6.6361]
[1767574746882,6.96685069,135.76,135.66,6.6368]
[1767574747279,6.96685069,135.76,135.65,190.3104]
[1767574748682,6.96685069,135.76,135.67,6.6365]
[1767574749276,0.33425069,135.73,135.65,93.6974]
[1767574749476,6.6334,135.74,135.65,87.06]
[1767574749982,0.33425069,135.75,135.65,87.06]
[1767574750178,0.33425069,135.75,135.65,190.3096]
[1767574750579,87.29425069,135.77,135.65,190.3096]
[1767574750981,0.33425069,135.76,135.65,87.06]
[1767574751675,0.33425069,135.76,135.66,6.637]
[1767574753187,6.96675069,135.76,135.67,6.6365]
[1767574753388,0.33425069,135.75,135.67,6.6365]
[1767574754685,0.33425069,135.74,135.67,6.6365]
[1767574754886,0.33425069,135.74,135.65,6.6375]
[1767574755089,0.33425069,135.73,135.65,6.6375]
[1767574755490,6.96815069,135.73,135.63,262.42598144]
[1767574755689,0.33425069,135.72,135.63,262.42598144]
[1767574755890,0.33425069,135.72,135.63,255.78758144]
[1767574757486,0.33425069,135.72,135.64,6.6379]
[1767574757884,0.33425069,135.72,135.63,255.78758144]
[1767574758086,6.96875069,135.72,135.63,262.42588144]
[1767574759685,6.96875069,135.72,135.63,255.78758144]
[1767574759686,0.33425069,135.72,135.63,255.78758144]
[1767574760595,1.83736506,135.72,135.63,257.29069581]
[1767574760795,1.83736506,135.7,135.63,255.78758144]
[1767574765409,8.47266506,135.7,135.63,255.78758144]
[1767574765609,103.50775069,135.76,135.65,6.6376]
[1767574765808,6.6364,135.68,135.59,1.50311437]
[1767574766009,8.13951437,135.68,135.59,1.50311437]
[1767574767612,8.13951437,135.68,135.6,6.64]
[1767574767813,6.6368,135.67,135.58,1.50311437]
[1767574768708,1.83736506,135.68,135.6,6.6399]
[1767574768916,1.83736506,135.68,135.58,104.80651437]
[1767574769118,6.6361,135.69,135.6,1.50311437]
[1767574769709,6.6361,135.69,135.61,1.50311437]
[1767574770408,8.13921437,135.69,135.59,1.50311437]
[1767574770604,8.13921437,135.69,135.61,6.6395]
[1767574771316,8.4501153,135.69,135.61,6.6395]
[1767574771709,0.31090093,135.68,135.61,6.6395]
[1767574772421,0.31090093,135.67,135.61,6.6395]
[1767574773518,1.8140153,135.69,135.61,6.6395]
[1767574773719,0.31090093,135.69,135.61,6.6395]
[1767574774015,0.31090093,135.69,135.62,6.6389]
[1767574774715,1.8140153,135.69,135.62,6.6389]
[1767574775216,0.31090093,135.68,135.62,6.6389]
[1767574775812,0.31090093,135.68,135.6,6.6397]
[1767574776014,0.32438849,135.66,135.56,1.50311437]
[1767574776314,1.50311437,135.65,135.56,1.50311437]
[1767574777622,1.50311437,135.65,135.58,6.6407]
[1767574778124,1.50311437,135.65,135.56,1.50311437]
[1767574778125,0.32438849,135.64,135.56,6.6421]
[1767574779123,1.82750286,135.63,135.56,6.6421]